bitfinex-derivatives/quotes_BTCF0:USTF0_20240814
["timestamp","ask_amount","ask_price","bid_price","bid_amount"]
[1723617365458,0.115112,60782.0,60781.0,0.00024676]
[1723617365762,0.870312,60782.0,60781.0,0.00024676]
[1723617365964,1.363872,60782.0,60781.0,0.00024676]
[1723617367668,1.763872,60782.0,60781.0,0.00024676]
[1723617367967,1.764872,60782.0,60781.0,0.00124676]
[1723617368169,1.765872,60782.0,60781.0,0.00224676]
[1723617368565,0.530356,60782.0,60781.0,0.00224676]
[1723617369470,1.023916,60782.0,60781.0,0.00224676]
[1723617369664,0.530356,60782.0,60781.0,0.00224676]
[1723617374366,0.891156,60782.0,60781.0,0.00224676]
[1723617381172,0.7236,60782.0,60781.0,0.1253686]
[1723617381560,0.7236,60782.0,60781.0,0.05980376]
[1723617381765,0.7236,60782.0,60781.0,0.00224676]
[1723617382275,0.7236,60782.0,60781.0,0.01181876]
[1723617382576,0.7236,60782.0,60781.0,0.00224676]
[1723617382873,0.7236,60782.0,60781.0,0.05980376]
[1723617383082,0.7236,60782.0,60781.0,0.55336376]
[1723617383272,0.002,60782.0,60781.0,1.07865704]
[1723617383961,0.418346,60793.0,60781.0,1.02108683]
[1723617384167,0.418346,60793.0,60788.0,0.05755]
[1723617384367,0.057547,60792.0,60783.0,0.057554]
[1723617384666,0.3608,60793.0,60781.0,0.12752683]
[1723617384863,0.057547,60791.0,60781.0,0.12752683]
[1723617385069,0.057547,60791.0,60784.0,0.057553]
[1723617385263,0.3608,60793.0,60781.0,0.12752683]
[1723617386372,0.057547,60792.0,60790.0,0.06565341]
[1723617387275,0.3608,60793.0,60785.0,0.08206676]
[1723617387469,0.05755,60788.0,60785.0,0.08206676]
[1723617388677,0.3608,60793.0,60785.0,0.08206676]
[1723617388885,0.057552,60787.0,60785.0,0.08206676]
[1723617389175,0.4708,60793.0,60785.0,0.08206676]
[1723617389176,0.418352,60786.0,60785.0,0.08206676]
[1723617391475,0.418352,60786.0,60781.0,0.00224676]
[1723617391476,0.3608,60786.0,60781.0,0.00224676]
[1723617391670,0.36172,60793.0,60784.0,0.06564544]
[1723617391872,0.4608,60793.0,60787.0,0.0656416]
[1723617392066,0.518346,60793.0,60788.0,0.0656416]
[1723617392271,0.057547,60792.0,60788.0,0.0656416]
[1723617393674,0.057547,60792.0,60787.0,0.0656416]
[1723617393869,0.3608,60788.0,60786.0,0.0656416]
[1723617394575,0.4708,60788.0,60785.0,0.0656416]
[1723617395783,0.001,60786.0,60785.0,0.0666416]
[1723617395984,0.111,60786.0,60785.0,0.0666416]
[1723617396174,0.168552,60786.0,60785.0,0.0666416]
[1723617396983,0.058552,60786.0,60785.0,0.0666416]
[1723617397185,0.058552,60786.0,60785.0,0.001]
[1723617397381,0.001,60786.0,60785.0,0.001]
[1723617397685,0.001,60786.0,60785.0,0.058553]
[1723617397877,0.3618,60788.0,60785.0,0.058553]
[1723617398093,0.3618,60788.0,60787.0,0.06561839]
[1723617398783,0.3608,60788.0,60787.0,0.06561839]
[1723617400484,0.3608,60788.0,60787.0,0.06562572]
[1723617400684,0.3618,60788.0,60787.0,0.06662572]
[1723617400874,0.3618,60788.0,60787.0,0.001]
[1723617401285,0.3618,60788.0,60787.0,0.058551]
[1723617401585,0.001,60788.0,60787.0,0.058551]
[1723617401778,0.3608,60793.0,60792.0,0.057546]
[1723617402180,0.06542415,60804.0,60802.0,0.057536]
[1723617402478,0.3608,60812.0,60805.0,0.057534]
[1723617402689,0.3608,60812.0,60803.0,0.06561334]
[1723617402887,0.4608,60812.0,60805.0,0.06561334]
[1723617403188,0.418333,60806.0,60803.0,0.06561334]
[1723617403382,0.418333,60806.0,60802.0,0.00024676]
[1723617404186,0.418333,60806.0,60802.0,0.05778376]
[1723617405284,0.432333,60806.0,60802.0,0.05778376]
[1723617406086,0.3748,60806.0,60803.0,0.057536]
[1723617407383,0.3748,60806.0,60804.0,0.057535]
[1723617407586,0.3748,60806.0,60805.0,0.057535]
[1723617407785,0.3858,60806.0,60805.0,0.057535]
[1723617409183,0.3858,60806.0,60802.0,0.00024676]
[1723617409785,0.5143,60806.0,60802.0,0.00024676]
[1723617409988,0.6436,60806.0,60802.0,0.00024676]
[1723617410692,0.6446,60806.0,60802.0,0.00024676]
[1723617410897,0.6326,60806.0,60802.0,0.00024676]
[1723617411200,0.690134,60806.0,60802.0,0.00024676]
[1723617412191,0.701134,60806.0,60802.0,0.00024676]
[1723617414696,0.6436,60806.0,60802.0,0.00024676]
[1723617414903,0.3858,60806.0,60804.0,0.057534]
[1723617415087,0.3858,60806.0,60805.0,0.057534]
[1723617416199,0.3718,60806.0,60805.0,0.057534]
[1723617416394,0.3858,60806.0,60805.0,0.057534]
[1723617417299,0.3728,60806.0,60805.0,0.058534]
[1723617418095,0.00024676,60815.0,60813.0,0.057527]
[1723617418290,0.00024676,60815.0,60814.0,0.057526]
[1723617419185,0.3608,60818.0,60817.0,0.057523]
[1723617419386,0.3608,60818.0,60817.0,0.341923]
[1723617420193,0.3608,60824.0,60823.0,0.057517]
[1723617420494,0.36104676,60824.0,60823.0,0.057517]
[1723617420698,0.00024676,60824.0,60823.0,0.057517]
[1723617420895,0.00024676,60824.0,60823.0,0.06585853]
[1723617421502,0.00024676,60824.0,60823.0,0.07523336]
[1723617423992,0.00424676,60824.0,60823.0,0.07523336]
[1723617424291,0.00424676,60824.0,60823.0,0.35963336]
[1723617424487,0.01124676,60824.0,60823.0,0.35963336]
[1723617425696,0.01124676,60824.0,60823.0,0.40863548]
[1723617426296,0.01124676,60824.0,60823.0,0.35963336]
[1723617429399,0.01124676,60824.0,60823.0,0.40862524]
[1723617429703,0.01124676,60824.0,60823.0,0.35963336]
[1723617430091,0.01124676,60824.0,60823.0,0.07523336]
[1723617430903,0.01124676,60824.0,60823.0,0.12422524]
[1723617431293,0.01124676,60824.0,60823.0,0.07523336]
[1723617431499,0.01124676,60824.0,60823.0,0.12425314]
[1723617433302,0.01124676,60824.0,60823.0,0.07523336]
[1723617436000,0.06876376,60824.0,60823.0,0.00937483]
[1723617436299,0.057517,60823.0,60822.0,0.04901941]
[1723617436607,0.320617,60823.0,60822.0,0.04901941]
[1723617438301,0.3731,60823.0,60818.0,0.04901941]
[1723617438503,0.3731,60823.0,60814.0,0.04901941]
[1723617438504,0.3608,60819.0,60814.0,0.04901941]
[1723617438711,0.057522,60818.0,60816.0,0.00952058]
[1723617439405,0.3608,60819.0,60816.0,0.00952058]
[1723617439602,0.3608,60819.0,60818.0,0.341922]
[1723617440203,0.008,60823.0,60822.0,0.057518]
[1723617440510,0.008,60823.0,60822.0,0.12291268]
[1723617440700,0.008,60823.0,60822.0,0.057518]
[1723617441005,0.008,60823.0,60822.0,0.12292565]
[1723617441399,0.006,60823.0,60822.0,0.057518]
[1723617441598,0.00024676,60824.0,60823.0,0.057517]
[1723617441807,0.00024676,60824.0,60823.0,0.71102966]
[1723617442011,0.00024676,60824.0,60823.0,0.06582966]
[1723617443307,0.36104676,60824.0,60823.0,0.04910875]
[1723617443509,0.36104676,60824.0,60820.0,0.06542218]
[1723617443510,0.36104676,60824.0,60820.0,0.04910875]
[1723617443697,0.48104676,60824.0,60820.0,0.04910875]
[1723617443903,0.48104676,60824.0,60817.0,0.04935551]
[1723617443904,0.057522,60818.0,60817.0,0.04935551]
[1723617444308,0.057522,60818.0,60817.0,0.00024676]
[1723617444504,0.316722,60818.0,60817.0,0.00024676]
[1723617444903,0.449022,60818.0,60817.0,0.00024676]
[1723617445406,0.449022,60818.0,60817.0,0.06566894]
[1723617446005,0.449022,60818.0,60817.0,0.06866894]
[1723617446299,0.449022,60818.0,60817.0,0.00324676]
[1723617447309,0.449022,60818.0,60817.0,0.08526344]
[1723617447807,0.449022,60818.0,60817.0,0.00324676]
[1723617448412,0.449022,60818.0,60817.0,0.08526344]
[1723617448815,0.450022,60818.0,60817.0,0.08526344]
[1723617449112,0.450022,60818.0,60817.0,0.20572927]
[1723617449612,0.450022,60818.0,60817.0,0.20576089]
[1723617449807,0.810822,60818.0,60817.0,0.12371259]
[1723617450003,0.450022,60818.0,60817.0,0.12371259]
[1723617450207,0.450022,60818.0,60817.0,0.00324676]
[1723617450407,0.450022,60818.0,60817.0,0.12327952]
[1723617450811,0.450022,60818.0,60817.0,0.12329196]
[1723617452008,0.450022,60818.0,60817.0,0.12334765]
[1723617453008,0.450022,60818.0,60817.0,0.00324676]
[1723617454202,0.1244,60818.0,60817.0,0.00324676]
[1723617454510,0.1244,60818.0,60817.0,0.0852875]
[1723617454715,0.1244,60818.0,60817.0,0.18086093]
[1723617454906,0.1244,60818.0,60817.0,0.1428068]
[1723617455307,0.1244,60818.0,60817.0,0.06076976]
[1723617455714,0.1244,60818.0,60817.0,0.00324676]
[1723617456108,0.291922,60818.0,60817.0,0.00324676]
[1723617456506,0.181922,60818.0,60817.0,0.00324676]
[1723617459816,0.001,60818.0,60817.0,0.00324676]
[1723617460017,0.001,60818.0,60817.0,0.1812938]
[1723617460917,0.001,60818.0,60817.0,0.27936605]
[1723617462521,0.001,60818.0,60817.0,0.1812938]
[1723617463420,0.058522,60818.0,60817.0,0.1237708]
[1723617465020,0.178522,60818.0,60817.0,0.2058566]
[1723617465326,1.090124,60818.0,60817.0,0.0689217]
[1723617465526,1.090124,60818.0,60817.0,0.00324676]
[1723617467726,0.596844,60818.0,60817.0,0.00324676]
[1723617472731,0.60644372,60818.0,60817.0,0.00324676]
[1723617474235,0.596844,60818.0,60817.0,0.06892104]
[1723617474536,0.596844,60818.0,60817.0,0.00324676]
[1723617475934,0.596844,60818.0,60817.0,0.05250289]
[1723617475935,1.090124,60818.0,60817.0,0.05250289]
[1723617476131,1.090124,60818.0,60817.0,0.00324676]
[1723617476928,1.090124,60818.0,60817.0,0.05249939]
[1723617477537,0.115054,60816.0,60815.0,0.03825263]
[1723617477735,0.11506,60813.0,60812.0,0.06567428]
[1723617477950,0.057536,60806.0,60805.0,0.2302]
[1723617478234,0.05754,60802.0,60801.0,0.06567428]
[1723617478444,0.057538,60804.0,60797.0,0.06567428]
[1723617478630,0.3608,60798.0,60797.0,0.06567428]
[1723617478828,0.538344,60798.0,60797.0,0.06567428]
[1723617479036,0.057546,60796.0,60795.0,0.00024676]
[1723617479232,0.3608,60798.0,60795.0,0.06591925]
[1723617479431,0.3608,60798.0,60797.0,0.057545]
[1723617480725,0.3608,60798.0,60795.0,0.07428431]
[1723617481441,0.3608,60798.0,60795.0,0.00865349]
[1723617481634,0.3608,60798.0,60795.0,0.06620049]
[1723617484230,0.3608,60798.0,60795.0,0.00865349]
[1723617484434,0.3608,60798.0,60797.0,0.057545]
[1723617484844,0.554457,60805.0,60797.0,1.53864]
[1723617484845,0.36172,60805.0,60797.0,1.53864]
[1723617485031,0.3608,60805.0,60803.0,0.057539]
[1723617485941,0.3608,60805.0,60804.0,0.057538]
[1723617486330,0.3618,60805.0,60804.0,0.057538]
[1723617487152,0.001,60805.0,60804.0,0.950938]
[1723617487439,0.00939418,60816.0,60804.0,0.6147]
[1723617487631,0.3608,60818.0,60808.0,0.06547893]
[1723617487830,0.3608,60818.0,60813.0,0.057529]
[1723617488243,0.3608,60818.0,60814.0,0.057529]
[1723617489034,0.3608,60818.0,60816.0,0.057527]
[1723617489435,0.3608,60818.0,60817.0,0.057526]
[1723617490046,0.3618,60818.0,60817.0,0.057526]
[1723617491243,0.3608,60818.0,60817.0,0.057526]
[1723617491439,0.418325,60818.0,60816.0,0.004]
[1723617491747,0.3608,60818.0,60816.0,0.01322554]
[1723617491938,0.3608,60818.0,60816.0,0.004]
[1723617492838,0.3618,60818.0,60816.0,0.004]
[1723617493239,0.154726,60817.0,60816.0,0.004]
[1723617493443,0.057527,60816.0,60813.0,0.07503011]
[1723617493646,0.057527,60816.0,60812.0,0.06547893]
[1723617493946,0.057528,60815.0,60812.0,0.06547893]
[1723617494241,0.05753,60813.0,60812.0,0.06547893]
[1723617494631,0.05753,60813.0,60812.0,0.07470857]
[1723617494833,0.3608,60813.0,60812.0,0.07470857]
[1723617495035,0.1018,60814.0,60812.0,0.00922964]
[1723617495240,0.41833,60813.0,60812.0,0.002]
[1723617495443,0.05753,60813.0,60812.0,0.002]
[1723617497539,0.05753,60813.0,60812.0,0.011]
[1723617498440,0.05853,60813.0,60812.0,0.018]
[1723617498644,0.05853,60813.0,60812.0,0.016]
[1723617499241,0.001,60813.0,60812.0,0.073531]
[1723617499547,0.001,60813.0,60812.0,0.13900993]
[1723617499745,0.001,60813.0,60812.0,0.074531]
[1723617500541,0.49622,60816.0,60815.0,0.057528]
[1723617500744,0.4953,60816.0,60815.0,0.057528]
[1723617501134,0.3608,60816.0,60815.0,0.057528]
[1723617501547,0.3608,60816.0,60812.0,0.002]
[1723617501548,0.00024676,60822.0,60821.0,0.057522]
[1723617501747,0.01024676,60822.0,60821.0,0.057522]
[1723617501947,0.00024676,60822.0,60821.0,0.057522]
[1723617503245,0.00024676,60822.0,60817.0,0.057526]
[1723617503547,0.3608,60818.0,60813.0,0.12301571]
[1723617503745,0.0939,60817.0,60813.0,0.057529]
[1723617504145,0.0939,60817.0,60813.0,0.06692585]
[1723617504341,0.0939,60817.0,60813.0,0.057529]
[1723617505150,0.151426,60817.0,60813.0,0.057529]
[1723617506842,0.151426,60817.0,60813.0,0.059529]
[1723617507941,0.151426,60817.0,60813.0,0.002]
[1723617507942,0.057529,60814.0,60813.0,0.002]
[1723617508453,0.057529,60814.0,60813.0,0.01]
[1723617509942,0.3608,60818.0,60813.0,0.35988671]
[1723617510255,0.00024676,60822.0,60821.0,0.057522]
[1723617510448,0.00024676,60822.0,60821.0,0.12304226]
[1723617510849,0.00024676,60822.0,60821.0,0.057522]
[1723617512649,0.00124676,60822.0,60821.0,0.057522]
[1723617513859,0.00124676,60822.0,60821.0,0.06700613]
[1723617514261,0.00624676,60822.0,60821.0,0.26795839]
[1723617514551,0.00624676,60822.0,60821.0,0.1860032]
[1723617514753,0.00624676,60822.0,60821.0,0.26797893]
[1723617515149,0.00624676,60822.0,60821.0,0.14898186]
[1723617515349,0.00624676,60822.0,60821.0,0.26845616]
[1723617515858,0.00624676,60822.0,60821.0,0.26847081]
[1723617516253,0.00624676,60822.0,60821.0,0.00948413]
[1723617516459,0.00624676,60822.0,60820.0,0.3608]
[1723617516460,0.06376776,60822.0,60820.0,0.3608]
[1723617516657,0.154922,60821.0,60820.0,0.3608]
[1723617517945,0.057524,60819.0,60818.0,0.08199038]
[1723617518178,0.12,60819.0,60818.0,0.06562823]
[1723617518358,0.057525,60818.0,60817.0,0.06562823]
[1723617518747,0.057525,60818.0,60813.0,0.08199038]
[1723617519057,0.3608,60816.0,60814.0,0.057528]
[1723617519361,0.3608,60816.0,60814.0,0.13951838]
[1723617519757,0.3608,60816.0,60815.0,0.057528]
[1723617520057,0.45912,60821.0,60818.0,0.057524]
[1723617520250,0.4582,60821.0,60818.0,0.057524]
[1723617520454,0.4582,60821.0,60819.0,0.06562844]
[1723617520753,0.5882,60821.0,60818.0,0.06562844]
[1723617520954,0.5882,60821.0,60817.0,0.003]
[1723617520955,0.057525,60818.0,60817.0,0.06862844]
[1723617522156,0.057525,60818.0,60817.0,0.06562844]
[1723617522754,0.057525,60818.0,60816.0,0.06562844]
[1723617523856,0.057526,60817.0,60816.0,0.06562844]
[1723617524764,0.057527,60816.0,60815.0,0.06562844]
[1723617524961,0.519927,60816.0,60815.0,0.06562844]
[1723617526360,0.519927,60816.0,60812.0,0.08203552]
[1723617526554,0.0953,60815.0,60812.0,0.08203552]
[1723617526755,0.0953,60815.0,60813.0,0.08203552]
[1723617527765,0.3628,60816.0,60815.0,0.057528]
[1723617527958,0.3628,60816.0,60815.0,0.26020836]
[1723617527959,0.002,60816.0,60815.0,0.26020836]
[1723617528363,0.002,60816.0,60815.0,0.057528]
[1723617529263,0.3628,60816.0,60815.0,0.057528]
[1723617529657,0.002,60816.0,60815.0,0.057528]
[1723617530157,0.002,60816.0,60813.0,0.08203692]
[1723617530355,0.3608,60814.0,60812.0,0.009]
[1723617530560,0.528329,60814.0,60813.0,0.06564075]
[1723617530766,0.528329,60814.0,60811.0,0.06564075]
[1723617530963,0.528329,60814.0,60810.0,0.06564075]
[1723617531159,0.528329,60814.0,60811.0,0.06564075]
[1723617531359,0.3608,60812.0,60810.0,0.06564075]
[1723617531667,0.4708,60812.0,60810.0,0.06564075]
[1723617532265,0.057532,60811.0,60809.0,0.07514416]
[1723617532462,0.167532,60811.0,60809.0,0.07514416]
[1723617533463,0.167532,60811.0,60809.0,0.00950341]
[1723617533855,0.057533,60810.0,60809.0,0.00950341]
[1723617534060,0.60336,60810.0,60807.0,0.06464075]
[1723617534264,0.057537,60805.0,60804.0,0.06464075]
[1723617534561,0.05754,60803.0,60796.0,0.09023061]
[1723617534769,0.3608,60799.0,60796.0,0.09023061]
[1723617535163,0.3608,60799.0,60796.0,0.09144042]
[1723617535567,0.3608,60799.0,60796.0,0.00939972]
[1723617535863,0.3608,60799.0,60795.0,0.0820407]
[1723617536361,0.3608,60799.0,60794.0,0.14767959]
[1723617537470,0.2,60802.0,60794.0,0.14767959]
[1723617537769,0.3608,60799.0,60794.0,0.14767959]
[1723617538063,0.3608,60799.0,60794.0,0.07510314]
[1723617538269,0.2,60802.0,60794.0,0.15714384]
[1723617538456,0.2,60802.0,60794.0,0.01755614]
[1723617538659,0.2,60802.0,60794.0,0.0820407]
[1723617538859,0.2,60802.0,60794.0,0.09036202]
[1723617539064,0.201,60802.0,60794.0,0.09236202]
[1723617540463,0.001,60799.0,60794.0,0.03432132]
[1723617541767,0.001,60799.0,60794.0,0.11636202]
[1723617541968,0.002,60802.0,60801.0,0.057541]
[1723617542461,0.001,60802.0,60801.0,0.057541]
[1723617545262,0.001,60802.0,60801.0,0.069541]
[1723617545469,0.002,60802.0,60801.0,0.069541]
[1723617545865,0.002,60802.0,60801.0,0.07892934]
[1723617548872,0.001,60802.0,60801.0,0.07892934]
[1723617549072,0.001,60802.0,60801.0,0.28321866]
[1723617549273,0.001,60802.0,60801.0,0.20117796]
[1723617549972,0.001,60802.0,60801.0,0.20317796]
[1723617549973,0.002,60802.0,60801.0,0.20317796]
[1723617551675,0.002,60802.0,60801.0,0.14563696]
[1723617551867,0.05954,60802.0,60801.0,0.02338834]
[1723617552065,0.05954,60802.0,60801.0,0.014]
[1723617563380,0.17954,60802.0,60801.0,0.014]
[1723617563577,1.13048,60802.0,60801.0,0.014]
[1723617563985,1.15713324,60802.0,60801.0,0.014]
[1723617564184,1.15713324,60802.0,60791.0,0.00024676]
[1723617564185,0.05755,60792.0,60791.0,0.00024676]
[1723617564387,0.77915,60792.0,60791.0,0.00024676]
[1723617566793,0.77915,60792.0,60791.0,0.00924676]
[1723617567391,0.7226,60792.0,60791.0,0.00924676]
[1723617567589,0.002,60792.0,60791.0,0.06779776]
[1723617567779,0.3628,60792.0,60791.0,0.06779776]
[1723617567983,0.002,60792.0,60791.0,0.06779776]
[1723617572096,0.002,60792.0,60791.0,0.14979348]
[1723617572297,0.002,60792.0,60791.0,0.27356923]
[1723617572790,0.002,60792.0,60791.0,0.19157351]
[1723617575491,0.002,60792.0,60791.0,0.19147586]
[1723617576902,0.002,60792.0,60791.0,0.19166093]
[1723617577097,0.002,60792.0,60791.0,0.27368074]
[1723617577397,0.002,60792.0,60791.0,0.06779776]
[1723617577699,0.3628,60792.0,60791.0,0.01024676]
[1723617581301,0.3628,60792.0,60791.0,0.09226657]
[1723617581494,0.002,60792.0,60791.0,0.21668615]
[1723617581796,0.002,60792.0,60791.0,0.13466634]
[1723617582797,0.002,60792.0,60791.0,0.19221734]
[1723617584605,0.002,60792.0,60791.0,1.17289734]
[1723617585501,0.00024676,60804.0,60803.0,0.05754]
[1723617585896,0.00024676,60804.0,60803.0,0.26282546]
[1723617586096,0.00024676,60804.0,60803.0,0.18074669]
[1723617587697,0.00924676,60804.0,60803.0,0.18074669]
[1723617588399,0.00924676,60804.0,60803.0,0.26277922]
[1723617588601,0.00924676,60804.0,60803.0,0.75617922]
[1723617588800,0.01524676,60804.0,60803.0,0.26277922]
[1723617588996,0.01524676,60804.0,60803.0,0.75617922]
[1723617589193,0.01524676,60804.0,60803.0,0.76570346]
[1723617589500,0.01524676,60804.0,60803.0,0.68367093]
[1723617590396,0.01524676,60804.0,60803.0,0.76567359]
[1723617590602,0.01524676,60804.0,60803.0,0.27227359]
[1723617592492,0.01524676,60804.0,60803.0,0.06706424]
[1723617596802,0.01524676,60804.0,60803.0,0.00952424]
[1723617597005,0.01524676,60804.0,60800.0,0.13954466]
[1723617597200,0.1749,60803.0,60800.0,0.13954466]
[1723617597399,0.2639,60803.0,60800.0,0.13954466]
[1723617598301,0.2639,60803.0,60800.0,0.14924886]
[1723617599300,0.2659,60803.0,60800.0,0.14924886]
[1723617601903,0.4563,60803.0,60800.0,0.09170686]
[1723617602103,0.4563,60803.0,60802.0,0.05754]
[1723617602104,0.0935,60803.0,60802.0,0.05754]
[1723617602404,0.0945,60803.0,60802.0,0.18029563]
[1723617602796,0.0885,60803.0,60802.0,0.18029563]
[1723617603002,0.4493,60803.0,60802.0,0.06559623]
[1723617603308,0.50684,60803.0,60801.0,0.06559623]
[1723617603505,0.4503,60803.0,60801.0,0.12313723]
[1723617603709,0.4503,60803.0,60801.0,0.057541]
[1723617603906,0.4513,60803.0,60802.0,0.002]
[1723617605512,0.62884,60803.0,60802.0,0.06760705]
[1723617605698,0.057541,60801.0,60800.0,0.002]
[1723617605903,0.177541,60801.0,60800.0,0.002]
[1723617606108,0.057547,60795.0,60794.0,0.04920778]
[1723617606303,0.418347,60795.0,60794.0,0.04920778]
[1723617606503,0.418347,60795.0,60793.0,0.05866821]
[1723617606504,0.057548,60794.0,60793.0,0.05866821]
[1723617606703,0.057548,60794.0,60793.0,0.04920778]
[1723617606704,0.418348,60794.0,60793.0,0.04920778]
[1723617607112,0.418348,60794.0,60791.0,0.00024676]
[1723617607113,0.418348,60794.0,60792.0,0.04920778]
[1723617607413,0.057549,60793.0,60792.0,0.04920778]
[1723617608008,0.05755,60792.0,60791.0,0.04945517]
[1723617608310,0.05755,60792.0,60791.0,0.00024676]
[1723617608311,0.15755,60792.0,60791.0,0.00024676]
[1723617608614,0.05755,60792.0,60791.0,0.00024676]
[1723617610520,0.15755,60792.0,60791.0,0.00024676]
[1723617611411,0.05755,60792.0,60791.0,0.00024676]
[1723617612220,0.05855,60792.0,60791.0,0.00124676]
[1723617614317,0.001,60792.0,60791.0,0.00124676]
[1723617615420,0.001,60792.0,60791.0,0.06688076]
[1723617615815,0.3608,60794.0,60793.0,0.057549]
[1723617617516,0.3618,60794.0,60793.0,0.10675741]
[1723617618022,0.3618,60794.0,60793.0,0.057549]
[1723617618613,0.3608,60794.0,60793.0,0.059549]
[1723617618808,0.3618,60794.0,60793.0,0.059549]
[1723617619406,0.3618,60794.0,60793.0,0.10866549]
[1723617620725,0.3618,60794.0,60793.0,0.059549]
[1723617621116,0.3608,60794.0,60793.0,0.059549]
[1723617621512,0.3608,60794.0,60793.0,0.057549]
[1723617622309,0.3628,60794.0,60793.0,0.057549]
[1723617622718,0.3628,60794.0,60793.0,0.06698979]
[1723617622923,0.35028288,60794.0,60793.0,0.56046979]
[1723617623128,0.36104676,60804.0,60803.0,0.05754]
[1723617624222,0.36104676,60804.0,60803.0,0.10666864]
[1723617625219,0.36104676,60804.0,60801.0,0.04912864]
[1723617625423,0.36104676,60804.0,60800.0,0.04912864]
[1723617625826,0.36104676,60804.0,60799.0,0.10667164]
[1723617626019,0.36104676,60804.0,60800.0,0.04912864]
[1723617626419,0.36204676,60804.0,60800.0,0.04912864]
[1723617627219,0.36204676,60804.0,60799.0,0.05875314]
[1723617628229,0.41958576,60804.0,60799.0,0.05875314]
[1723617628430,0.41958576,60804.0,60800.0,0.04912864]
[1723617628825,0.42058576,60804.0,60800.0,0.04912864]
[1723617629027,0.05754,60803.0,60799.0,0.05012864]
[1723617629225,0.05754,60803.0,60799.0,0.001]
[1723617630233,0.05754,60803.0,60799.0,0.003]
[1723617630929,0.05754,60803.0,60799.0,0.05212864]
[1723617631527,0.057541,60802.0,60799.0,0.05212864]
[1723617631731,0.057541,60802.0,60799.0,0.05012864]
[1723617631929,0.057541,60802.0,60799.0,0.04912864]
[1723617632130,0.057541,60802.0,60800.0,0.001]
[1723617632833,0.057541,60802.0,60799.0,0.05112864]
[1723617633134,0.057541,60802.0,60799.0,0.05212864]
[1723617633332,0.057541,60802.0,60801.0,0.04912864]
[1723617634536,0.057541,60802.0,60800.0,0.04912864]
[1723617635237,0.057541,60802.0,60801.0,0.001]
[1723617635434,0.058541,60802.0,60801.0,0.05012864]
[1723617635635,0.001,60802.0,60801.0,0.05012864]
[1723617635836,0.002,60802.0,60801.0,0.002]
[1723617637031,0.72276676,60804.0,60801.0,0.001]
[1723617637231,0.00024676,60804.0,60803.0,0.04919517]
[1723617638437,0.00024676,60804.0,60802.0,0.04919517]
[1723617638438,0.05778576,60804.0,60802.0,0.04919517]
[1723617639044,0.05754,60803.0,60802.0,0.04919517]
[1723617639437,0.16754,60803.0,60802.0,0.04919517]
[1723617639636,0.16754,60803.0,60800.0,0.002]
[1723617639637,0.057541,60801.0,60800.0,0.001]
[1723617639844,0.99384044,60801.0,60800.0,0.001]
[1723617640039,1.421741,60801.0,60800.0,0.001]
[1723617640644,1.421741,60801.0,60792.0,0.04920638]
[1723617640645,0.05755,60793.0,60792.0,0.04920638]
[1723617640839,0.41835,60793.0,60792.0,0.04920638]
[1723617642137,0.41835,60793.0,60792.0,0.05862454]
[1723617642338,0.41835,60793.0,60792.0,0.00941816]
[1723617642543,0.41835,60793.0,60791.0,0.00024676]
[1723617643439,0.05755,60792.0,60791.0,0.07531026]
[1723617645837,0.05755,60792.0,60791.0,0.07631026]
[1723617646638,0.001,60792.0,60791.0,0.08447624]
[1723617648345,0.001,60792.0,60791.0,0.01897138]
[1723617648545,0.001,60792.0,60791.0,0.0108054]
[1723617648748,0.05855,60792.0,60791.0,0.07631026]
[1723617648948,0.05855,60792.0,60791.0,0.0108054]
[1723617650052,0.002,60792.0,60791.0,0.02019877]
[1723617650248,0.002,60792.0,60791.0,0.00224676]
[1723617650853,0.002,60792.0,60791.0,0.07598112]
[1723617651142,0.002,60792.0,60791.0,0.00224676]
[1723617651357,0.002,60792.0,60791.0,0.06788402]
[1723617651543,0.002,60792.0,60791.0,0.08576883]
[1723617651853,0.002,60792.0,60791.0,0.07750753]
[1723617652053,0.002,60792.0,60791.0,0.01187027]
[1723617652448,0.002,60792.0,60791.0,0.07750753]
[1723617652648,0.002,60792.0,60791.0,0.01187027]
[1723617654249,0.05955,60792.0,60791.0,0.01187027]
[1723617654446,1.77578,60792.0,60791.0,0.00224676]
[1723617655053,1.84124646,60792.0,60791.0,0.00224676]
[1723617655255,1.77578,60792.0,60791.0,0.00224676]
[1723617655449,1.84125312,60792.0,60791.0,0.00224676]
[1723617655958,1.37578,60792.0,60791.0,0.00224676]
[1723617656158,1.77578,60792.0,60791.0,0.00224676]
[1723617656350,1.71823,60792.0,60791.0,0.00224676]
[1723617656763,1.31823,60792.0,60791.0,0.00224676]
[1723617657058,1.71823,60792.0,60791.0,0.00224676]
[1723617658056,1.72772692,60792.0,60791.0,0.00224676]
[1723617658360,1.79320004,60792.0,60791.0,0.00224676]
[1723617658658,1.72772692,60792.0,60791.0,0.00224676]
[1723617659457,1.79318954,60792.0,60791.0,0.00224676]
[1723617659755,1.72772692,60792.0,60791.0,0.00224676]
[1723617661351,1.32772692,60792.0,60791.0,0.00224676]
[1723617661855,1.32672692,60792.0,60791.0,0.00124676]
[1723617662055,1.38427692,60792.0,60791.0,0.00124676]
[1723617662257,1.38327692,60792.0,60791.0,0.00024676]
[1723617662553,1.38527692,60792.0,60791.0,0.00224676]
[1723617662760,1.78527692,60792.0,60791.0,0.00224676]
[1723617663057,1.78527692,60792.0,60791.0,7.6e-07]
[1723617663455,1.38527692,60792.0,60791.0,7.6e-07]
[1723617663657,1.78527692,60792.0,60791.0,7.6e-07]
[1723617665669,1.38527692,60792.0,60791.0,7.6e-07]
[1723617667049,1.78527692,60792.0,60791.0,7.6e-07]
[1723617671057,1.86715122,60792.0,60791.0,7.6e-07]
[1723617671459,1.92470122,60792.0,60791.0,7.6e-07]
[1723617671865,1.86715122,60792.0,60791.0,7.6e-07]
[1723617672964,1.8119361,60792.0,60791.0,7.6e-07]
[1723617673163,1.78527692,60792.0,60791.0,7.6e-07]
[1723617673369,1.8119361,60792.0,60791.0,7.6e-07]
[1723617674165,1.78527692,60792.0,60791.0,7.6e-07]